lending/lending_fUSD_20250131
["ID","MTS","AMOUNT","RATE_DAILY","PERIOD"]
[351088565,1738330242008,-3233.65,0.00016438,2]
[351088566,1738330242018,-500.0,0.00016438,2]
[351088567,1738330242027,-500.0,0.00016438,2]
[351088568,1738330242036,-1835.72,0.00016438,2]
[351088569,1738330242047,-1960.06,0.00016438,2]
[351088570,1738330242057,-507.56218838,0.00016438,2]
[351088571,1738330242068,-500.0,0.00016438,2]
[351088572,1738330242077,-5138.96,0.00016438,2]
[351088573,1738330242086,-1039.18,0.00016438,2]
[351088574,1738330242095,-169.35464611,0.00016438,2]
[351088575,1738330242105,-500.0,0.00016438,2]
[351088576,1738330242114,-500.0,0.00016438,2]
[351088577,1738330242123,-930.69,0.00016438,2]
[351088578,1738330242132,-6256.88,0.00016438,2]
[351088579,1738330242141,-2029.44,0.00016438,2]
[351088580,1738330242150,-533.32,0.00016438,2]
[351088581,1738330242159,-356.09135127,0.00016438,2]
[351088582,1738330242168,-500.0,0.00016438,2]
[351088583,1738330242178,-5102.8,0.00016438,2]
[351088584,1738330242187,-500.0,0.00016438,2]
[351088585,1738330242196,-2497.8,0.00016438,2]
[351088586,1738330242205,-787.65,0.00016438,2]
[351088587,1738330242215,-500.0,0.00016438,2]
[351088588,1738330242226,-500.0,0.00016438,2]
[351088589,1738330242235,-2405.42,0.00016438,2]
[351088590,1738330242244,-6171.09,0.00016438,2]
[351088591,1738330242253,-509.52,0.00016438,2]
[351088592,1738330242262,-825.38,0.00016438,2]
[351088593,1738330242272,-500.0,0.00016438,2]
[351088594,1738330242281,-547.19,0.00016438,2]
[351088595,1738330242290,-500.0,0.00016438,2]
[351088596,1738330242299,-500.0,0.00016438,2]
[351088597,1738330242309,-1388.58,0.00016438,2]
[351088598,1738330242318,-500.0,0.00016438,2]
[351088599,1738330242328,-1907.72,0.00016438,2]
[351088600,1738330242338,-500.0,0.00016438,2]
[351088601,1738330242347,-647.17,0.00016438,2]
[351088602,1738330242356,-500.0,0.00016438,2]
[351088603,1738330242365,-1179.41,0.00016438,2]
[351088604,1738330242374,-1165.58,0.00016438,2]
[351088605,1738330242383,-4741.78,0.00016438,2]
[351088606,1738330242392,-6748.1685,0.00016475,2]
[351088607,1738330242401,-3171.0767425,0.000165,2]
[351088608,1738330242410,-150.0,0.00016548,2]
[351088609,1738330242419,-631.62,0.00016573,2]
[351088610,1738330242429,-500.0,0.00016574,2]
[351088611,1738330242438,-500.0,0.00016574,2]
[351088612,1738330242447,-500.0,0.00016574,2]
[351088613,1738330242456,-500.0,0.00016574,2]
[351088614,1738330242466,-528.63074143,0.00016574,2]
[351088615,1738330242477,-500.0,0.00016574,2]
[351088616,1738330242486,-500.0,0.00016574,2]
[351088617,1738330242495,-500.0,0.00016574,2]
[351088618,1738330242505,-500.0,0.00016574,2]
[351088619,1738330242514,-500.0,0.00016574,2]
[351088620,1738330242524,-500.0,0.00016574,2]
[351088621,1738330242535,-500.0,0.00016574,2]
[351088622,1738330242545,-500.0,0.00016574,2]
[351088623,1738330242555,-500.0,0.00016574,2]
[351088624,1738330242565,-500.0,0.00016574,2]
[351088625,1738330242575,-500.0,0.00016574,2]
[351088626,1738330242584,-500.0,0.00016574,2]
[351088627,1738330242593,-500.0,0.00016574,2]
[351088628,1738330242604,-647.45,0.00016574,2]
[351088629,1738330242614,-216.44,0.00016574,2]
[351088630,1738330242624,-500.0,0.00016574,2]
[351088631,1738330242633,-500.0,0.00016574,2]
[351088632,1738330242642,-500.0,0.00016574,2]
[351088633,1738330242652,-539.65991964,0.00016574,2]
[351088634,1738330242661,-500.0,0.00016574,2]
[351088636,1738330242671,-500.0,0.00016574,2]
[351088638,1738330242681,-500.0,0.00016574,2]
[351088641,1738330242691,-500.0,0.00016574,2]
[351088646,1738330242700,-500.0,0.00016574,2]
[351088648,1738330242710,-500.0,0.00016574,2]
[351088650,1738330242720,-500.0,0.00016574,2]
[351088652,1738330242729,-505.33764281,0.00016574,2]
[351088654,1738330242738,-500.0,0.00016574,2]
[351088657,1738330242748,-500.0,0.00016574,2]
[351088659,1738330242757,-500.0,0.00016574,2]
[351088661,1738330242766,-500.0,0.00016574,2]
[351088664,1738330242776,-500.0,0.00016574,2]
[351088666,1738330242785,-500.0,0.00016574,2]
[351088668,1738330242795,-500.0,0.00016574,2]
[351088670,1738330242804,-510.77423339,0.00016574,2]
[351088672,1738330242813,-533.58,0.00016574,2]
[351088674,1738330242822,-500.0,0.00016574,2]
[351088676,1738330242832,-500.0,0.00016574,2]
[351088678,1738330242841,-500.0,0.00016574,2]
[351088680,1738330242850,-500.0,0.00016574,2]
[351088682,1738330242859,-248.86184351,0.00016574,2]
[351088684,1738330242869,-500.0,0.00016574,2]
[351088686,1738330242878,-500.0,0.00016574,2]
[351088688,1738330242887,-513.04096001,0.00016574,2]
[351088690,1738330242896,-500.0,0.00016574,2]
[351088691,1738330242906,-500.0,0.00016574,2]
[351088692,1738330242915,-500.0,0.00016574,2]
[351088693,1738330242926,-500.0,0.00016574,2]
[351088694,1738330242936,-500.0,0.00016574,2]
[351088695,1738330242945,-500.0,0.00016574,2]
[351088696,1738330242955,-500.0,0.00016574,2]
[351088697,1738330242964,-500.0,0.00016574,2]
[351088698,1738330242973,-921.76,0.00016574,2]
[351088699,1738330242983,-500.0,0.00016574,2]
[351088700,1738330242992,-554.28,0.00016574,2]
[351088701,1738330243002,-500.0,0.00016574,2]
[351088702,1738330243011,-500.0,0.00016574,2]
[351088703,1738330243020,-500.0,0.00016574,2]
[351088704,1738330243030,-500.0,0.00016574,2]
[351088705,1738330243039,-500.0,0.00016574,2]
[351088706,1738330243049,-500.0,0.00016574,2]
[351088707,1738330243058,-500.0,0.00016574,2]
[351088708,1738330243067,-500.0,0.00016574,2]
[351088709,1738330243076,-500.0,0.00016574,2]
[351088710,1738330243085,-500.0,0.00016574,2]
[351088711,1738330243094,-535.26,0.00016574,2]
[351088712,1738330243103,-495.0,0.00016574,2]
[351088713,1738330243112,-500.0,0.00016574,2]
[351088714,1738330243121,-500.0,0.00016574,2]
[351088715,1738330243130,-500.0,0.00016574,2]
[351088716,1738330243139,-500.0,0.00016574,2]
[351088717,1738330243148,-519.72841723,0.00016574,2]
[351088718,1738330243156,-500.0,0.00016574,2]
[351088720,1738330243165,-500.0,0.00016574,2]
[351088721,1738330243175,-500.0,0.00016574,2]
[351088722,1738330243184,-500.0,0.00016574,2]
[351088723,1738330243193,-500.0,0.00016574,2]
[351088724,1738330243202,-548.31,0.00016574,2]
[351088725,1738330243212,-500.0,0.00016574,2]
[351088726,1738330243221,-500.0,0.00016574,2]
[351088728,1738330243230,-475.51263191,0.00016574,2]
[351088729,1738330243240,-500.0,0.00016574,2]
[351088730,1738330243249,-500.0,0.00016574,2]
[351088731,1738330243258,-500.0,0.00016574,2]
[351088732,1738330243266,-500.0,0.00016574,2]
[351088733,1738330243275,-504.97,0.00016574,2]
[351088734,1738330243285,-500.0,0.00016574,2]
[351088735,1738330243294,-500.0,0.00016574,2]
[351088736,1738330243303,-500.0,0.00016574,2]
[351088737,1738330243312,-500.0,0.00016574,2]
[351088739,1738330243321,-500.0,0.00016574,2]
[351088740,1738330243330,-500.0,0.00016574,2]
[351088741,1738330243340,-500.0,0.00016574,2]
[351088742,1738330243350,-500.0,0.00016574,2]
[351088743,1738330243359,-500.0,0.00016574,2]
[351088744,1738330243369,-500.0,0.00016574,2]
[351088745,1738330243378,-500.0,0.00016574,2]
[351088746,1738330243387,-500.0,0.00016574,2]
[351088747,1738330243397,-672.19,0.00016574,2]
[351088748,1738330243407,-500.0,0.00016574,2]
[351088749,1738330243425,-500.0,0.00016574,2]
[351088750,1738330243437,-500.0,0.00016574,2]
[351088751,1738330243446,-500.0,0.00016574,2]
[351088752,1738330243456,-718.71,0.00016574,2]
[351088753,1738330243466,-500.0,0.00016574,2]
[351088754,1738330243476,-500.0,0.00016574,2]
[351088755,1738330243486,-500.0,0.00016574,2]
[351088756,1738330243497,-500.0,0.00016574,2]
[351088757,1738330243506,-500.0,0.00016574,2]
[351088758,1738330243517,-500.0,0.00016574,2]
[351088759,1738330243528,-500.0,0.00016574,2]
[351088760,1738330243542,-500.0,0.00016574,2]
[351088761,1738330243552,-500.0,0.00016574,2]
[351088762,1738330243561,-500.0,0.00016574,2]
[351088763,1738330243571,-3437.57,0.00016574,2]
[351088764,1738330243580,-527.97,0.00016574,2]
[351088765,1738330243590,-500.0,0.00016574,2]
[351088766,1738330243600,-1958.17,0.00016574,2]
[351088767,1738330243611,-500.0,0.00016574,2]
[351088768,1738330243622,-500.0,0.00016574,2]
[351088769,1738330243631,-563.00132685,0.00016574,2]
[351088770,1738330243641,-1086.27,0.00016574,2]
[351088771,1738330243651,-500.0,0.00016574,2]
[351088772,1738330243660,-500.0,0.00016574,2]
[351088773,1738330243670,-268.708961,0.00016574,2]
[351088774,1738330243680,-389.06849583,0.00016574,2]
[351088775,1738330243690,-508.42,0.00016574,2]
[351088776,1738330243700,-500.0,0.00016574,2]
[351088777,1738330243709,-500.0,0.00016574,2]
[351088778,1738330243719,-2213.4,0.00016574,2]
[351088779,1738330243728,-500.0,0.00016574,2]
[351088780,1738330243738,-500.0,0.00016574,2]
[351088781,1738330243747,-500.0,0.00016574,2]
[351088782,1738330243756,-500.0,0.00016574,2]
[351088783,1738330243766,-500.0,0.00016574,2]
[351088784,1738330243775,-500.0,0.00016574,2]
[351088785,1738330243785,-507.52393824,0.00016574,2]
[351088786,1738330243794,-500.0,0.00016574,2]
[351088787,1738330243803,-500.0,0.00016574,2]
[351088788,1738330243813,-750.16,0.00016574,2]
[351088789,1738330243822,-1648.29,0.00016574,2]
[351088790,1738330243831,-1214.4,0.00016574,2]
[351088791,1738330243842,-500.0,0.00016574,2]
[351088792,1738330243852,-500.0,0.00016574,2]
[351088793,1738330243862,-535.09,0.00016574,2]
[351088794,1738330243871,-1054.03,0.00016574,2]
[351088795,1738330243880,-500.0,0.00016574,2]
[351088796,1738330243891,-1696.88,0.00016574,2]
[351088797,1738330243901,-500.0,0.00016574,2]
[351088798,1738330243911,-913.79,0.00016574,2]
[351088799,1738330243921,-798.88,0.00016574,2]
[351088800,1738330243930,-500.0,0.00016574,2]
[351088801,1738330243940,-500.0,0.00016574,2]
[351088802,1738330243950,-500.0,0.00016574,2]
[351088803,1738330243960,-887.86,0.00016574,2]
[351088804,1738330243971,-398.45823222,0.00016574,2]
[351088805,1738330243980,-500.0,0.00016574,2]
[351088806,1738330243990,-1548.0,0.00016574,2]
[351088807,1738330244001,-500.0,0.00016574,2]
[351088808,1738330244010,-500.0,0.00016574,2]
[351088809,1738330244284,-500.0,0.00016574,2]
[351088810,1738330244294,-500.0,0.00016574,2]
[351088811,1738330244304,-777.96,0.00016574,2]
[351088812,1738330244313,-500.0,0.00016574,2]
[351088813,1738330244322,-503.33966803,0.00016574,2]
[351088814,1738330244332,-492.60964095,0.00016574,2]
[351088815,1738330244342,-500.0,0.00016574,2]
[351088816,1738330244352,-1988.47,0.00016574,2]
[351088817,1738330244362,-500.0,0.00016574,2]
[351088818,1738330244372,-500.0,0.00016574,2]
[351088819,1738330244381,-500.0,0.00016574,2]
[351088820,1738330244391,-500.0,0.00016574,2]
[351088821,1738330244401,-500.0,0.00016574,2]
[351088822,1738330244411,-2656.93,0.00016574,2]
[351088823,1738330244421,-500.0,0.00016574,2]
[351088824,1738330244431,-500.0,0.00016574,2]
[351088825,1738330244440,-2337.51,0.00016574,2]
[351088826,1738330244450,-500.0,0.00016574,2]
[351088827,1738330244461,-500.0,0.00016574,2]
[351088828,1738330244470,-500.0,0.00016574,2]
[351088829,1738330244481,-508.88334653,0.00016574,2]
[351088830,1738330244490,-4645.5,0.00016574,2]
[351088831,1738330244500,-500.0,0.00016574,2]
[351088832,1738330244509,-500.0,0.00016574,2]
[351088833,1738330244518,-500.0,0.00016574,2]
[351088834,1738330244528,-500.0,0.00016574,7]
[351088835,1738330244540,-10518.3,0.00016574,2]
[351088836,1738330244550,-500.0,0.00016574,2]
[351088837,1738330244559,-500.0,0.00016574,2]
[351088838,1738330244570,-500.0,0.00016574,2]
[351088839,1738330244579,-500.0,0.00016574,2]
[351088840,1738330244589,-500.0,0.00016574,2]
[351088841,1738330244598,-500.0,0.00016574,2]
[351088842,1738330244608,-500.0,0.00016574,2]
[351088843,1738330244619,-500.0,0.00016574,2]
[351088844,1738330244629,-538.72893517,0.00016574,2]
[351088845,1738330244639,-1506.86,0.00016574,2]
[351088846,1738330244648,-562.14840904,0.00016574,2]
[351088847,1738330244658,-500.0,0.00016574,2]
[351088848,1738330244668,-878.68,0.00016574,2]
[351088849,1738330244678,-500.0,0.00016574,2]
[351088850,1738330244688,-500.0,0.00016575,2]
[351088851,1738330244698,-500.0,0.00016575,2]
[351088852,1738330244708,-500.66403218,0.00016575,2]
[351088853,1738330244718,-585.38,0.00016575,2]
[351088854,1738330244727,-282.29420112,0.00016575,2]
[351088855,1738330244737,-500.0,0.00016575,2]
[351088856,1738330244746,-500.0,0.00016575,2]
[351088857,1738330244756,-500.0,0.00016575,2]
[351088858,1738330244765,-501.6,0.00016575,2]
[351088859,1738330244775,-500.0,0.00016575,2]
[351088860,1738330244785,-500.0,0.00016575,2]
[351088861,1738330244795,-500.0,0.00016575,2]
[351088862,1738330244804,-500.0,0.00016575,2]
[351088863,1738330244815,-500.0,0.00016575,2]
[351088864,1738330244824,-500.0,0.00016575,2]
[351088865,1738330244834,-500.0,0.00016575,2]
[351088866,1738330244843,-500.0,0.00016575,2]
[351088867,1738330244853,-500.0,0.00016575,2]
[351088868,1738330244863,-500.0,0.00016575,2]
[351088869,1738330244872,-500.0,0.00016575,2]
[351088870,1738330244882,-1050.63,0.00016575,2]
[351088871,1738330244891,-2526.07,0.00016575,2]
[351088872,1738330244901,-500.0,0.00016575,2]
[351088873,1738330244911,-500.0,0.00016575,2]
[351088874,1738330244920,-500.0,0.00016575,2]
[351088875,1738330244930,-708.56,0.00016575,2]
[351088876,1738330244940,-500.0,0.00016575,2]
[351088877,1738330244949,-928.97,0.00016575,2]
[351088878,1738330244959,-500.0,0.00016575,2]
[351088879,1738330244968,-1010.68,0.00016575,2]
[351088880,1738330244977,-660.51,0.00016575,2]
[351088881,1738330244987,-764.61,0.00016575,2]
[351088882,1738330244997,-500.0,0.00016575,2]
[351088883,1738330245006,-823.51,0.00016575,2]
[351088884,1738330245016,-596.38,0.00016575,2]
[351088885,1738330245025,-500.0,0.00016575,2]
[351088886,1738330245035,-500.0,0.00016575,2]
[351088887,1738330245049,-500.0,0.00016575,2]
[351088888,1738330245059,-1181.6,0.00016575,2]
[351088889,1738330245068,-1755.36,0.00016575,2]
[351088890,1738330245077,-774.61,0.00016575,2]
[351088891,1738330245087,-691.43,0.00016575,2]
[351088892,1738330245096,-945.59,0.00016575,2]
[351088893,1738330245106,-337.13797672,0.00016575,2]
[351088894,1738330245115,-500.0,0.00016575,2]
[351088895,1738330245125,-500.0,0.00016575,2]
[351088896,1738330245134,-678.94,0.00016575,2]
[351088897,1738330245144,-500.0,0.00016575,2]
[351088898,1738330245153,-502.29,0.00016575,2]
[351088899,1738330245162,-1393.13,0.00016575,2]
[351088900,1738330245173,-500.0,0.00016575,2]
[351088901,1738330245182,-1153.02,0.00016575,2]
[351088902,1738330245192,-684.77,0.00016575,2]
[351088903,1738330245201,-796.76,0.00016575,2]
[351088904,1738330245211,-732.31,0.00016575,2]
[351088905,1738330245221,-500.0,0.00016575,2]
[351088906,1738330245230,-500.0,0.00016575,2]
[351088907,1738330245239,-1222.29,0.00016575,2]
[351088908,1738330245249,-768.25,0.00016575,2]
[351088909,1738330245258,-500.0,0.00016575,2]
[351088910,1738330245268,-1062.2,0.00016575,2]
[351088911,1738330245278,-500.0,0.00016575,2]
[351088912,1738330245287,-649.99,0.00016575,2]
[351088913,1738330245297,-672.57,0.00016575,2]
[351088914,1738330245307,-707.49,0.00016575,2]
[351088915,1738330245316,-668.38,0.00016575,2]
[351088916,1738330245326,-500.0,0.00016575,2]
[351088917,1738330245336,-552.78,0.00016575,2]
[351088918,1738330245345,-655.08,0.00016575,2]
[351088919,1738330245355,-853.48,0.00016575,2]
[351088920,1738330245364,-500.0,0.00016575,2]
[351088921,1738330245373,-810.58,0.00016575,2]
[351088922,1738330245383,-543.67,0.00016575,2]
[351088923,1738330245393,-500.0,0.00016575,2]
[351088924,1738330245403,-553.86,0.00016575,2]
[351088925,1738330245412,-500.0,0.00016575,2]
[351088926,1738330245424,-500.0,0.00016575,2]
[351088927,1738330245433,-500.0,0.00016575,2]
[351088928,1738330245443,-618.0,0.00016575,2]
[351088929,1738330245453,-611.55,0.00016575,2]
[351088930,1738330245463,-500.0,0.00016575,2]
[351088931,1738330245474,-500.0,0.00016575,2]
[351088932,1738330245485,-780.11,0.00016575,2]
[351088933,1738330245495,-533.68766772,0.00016575,2]
[351088934,1738330245505,-1177.028054,0.00016575,2]
[351088935,1738330245515,-569.96,0.00016575,2]
[351088936,1738330245526,-667.09,0.00016575,2]
[351088937,1738330245541,-500.0,0.00016575,2]
[351088938,1738330245552,-906.03,0.00016575,2]
[351088939,1738330245562,-528.42,0.00016575,2]
[351088940,1738330245574,-500.0,0.00016575,2]
[351088941,1738330245584,-576.51,0.00016575,2]
[351088942,1738330245594,-1111.52,0.00016575,2]
[351088943,1738330245603,-1040.51,0.00016575,2]
[351088944,1738330245613,-500.0,0.00016575,2]
[351088945,1738330245623,-500.0,0.00016575,2]
[351088946,1738330245633,-817.512057,0.00016575,2]
[351088947,1738330245642,-558.66,0.00016575,2]
[351088948,1738330245652,-500.0,0.00016575,2]
[351088949,1738330245661,-749.14,0.00016575,2]
[351088951,1738330245671,-500.0,0.00016575,2]
[351088952,1738330245682,-1177.09,0.00016575,2]
[351088953,1738330245692,-500.0,0.00016575,2]
[351088954,1738330245701,-617.77,0.00016575,2]
[351088955,1738330245711,-500.0,0.00016575,2]
[351088956,1738330245720,-500.0,0.00016575,2]
[351088957,1738330245730,-500.0,0.00016575,2]
[351088958,1738330245740,-205.4,0.00016575,2]
[351088959,1738330245749,-896.66,0.00016575,2]
[351088960,1738330245759,-1019.41,0.00016575,2]
[351088961,1738330245769,-500.0,0.00016575,2]
[351088962,1738330245778,-500.0,0.00016575,2]
[351088963,1738330245788,-787.85,0.00016575,2]
[351088964,1738330245797,-749.64,0.00016575,2]
[351088965,1738330245807,-557.9,0.00016575,2]
[351088966,1738330245816,-599.93,0.00016575,2]
[351088968,1738330245826,-595.18,0.00016575,2]
[351088970,1738330245836,-500.0,0.00016575,2]
[351088971,1738330245846,-500.0,0.00016575,2]
[351088972,1738330245857,-500.0,0.00016575,2]
[351088973,1738330245866,-658.91,0.00016575,2]
[351088974,1738330245879,-500.0,0.00016575,2]
[351088975,1738330245888,-599.3,0.00016575,2]
[351088976,1738330245898,-590.44,0.00016575,2]
[351088977,1738330245911,-633.02,0.00016575,2]
[351088978,1738330245921,-500.0,0.00016575,2]
[351088979,1738330245932,-500.0,0.00016575,2]
[351088980,1738330245942,-722.92,0.00016575,2]
[351088981,1738330245952,-500.0,0.00016575,2]
[351088982,1738330245962,-1091.9,0.00016575,2]
[351088983,1738330245972,-813.36,0.00016575,2]
[351088984,1738330245982,-501.67,0.00016575,2]
[351088985,1738330245992,-500.0,0.00016575,2]
[351088986,1738330246002,-500.0,0.00016575,2]
[351088987,1738330246011,-1147.13,0.00016575,2]
[351088988,1738330246021,-500.0,0.00016575,2]
[351088989,1738330246030,-665.96,0.00016575,2]
[351088990,1738330246040,-500.0,0.00016575,2]
[351088991,1738330246050,-500.0,0.00016575,2]
[351088992,1738330246060,-899.19,0.00016575,2]
[351088993,1738330246070,-500.0,0.00016575,2]
[351088994,1738330246080,-1174.92,0.00016575,2]
[351088995,1738330246090,-668.92,0.00016575,2]
[351088996,1738330246100,-912.48,0.00016575,2]
[351088997,1738330246109,-1476.07,0.00016575,2]
[351088998,1738330246119,-153.065871,0.00016575,2]
[351088999,1738330246128,-500.0,0.00016575,2]
[351089000,1738330246139,-648.91,0.00016575,2]
[351089001,1738330246155,-650.58,0.00016575,2]
[351089002,1738330246165,-2128.17,0.00016575,2]
[351089003,1738330246177,-500.0,0.00016575,2]
[351089004,1738330246187,-689.56,0.00016575,2]
[351089005,1738330246196,-820.44,0.00016575,2]
[351089006,1738330246206,-971.49,0.00016575,2]
[351089007,1738330246216,-2443.42,0.00016575,2]
[351089008,1738330246225,-1597.55,0.00016575,2]
[351089009,1738330246235,-500.0,0.00016575,2]
[351089010,1738330246245,-1387.33,0.00016575,2]
[351089011,1738330246254,-928.42,0.00016575,2]
[351089012,1738330246264,-500.0,0.00016575,2]
[351089013,1738330246273,-500.0,0.00016575,2]
[351089015,1738330246283,-2195.25,0.00016575,2]
[351089017,1738330246292,-693.9,0.00016575,2]
[351089019,1738330246302,-10802.73,0.00016575,2]
[351089021,1738330246312,-872.91,0.00016575,2]
[351089023,1738330246321,-500.0,0.00016575,2]
[351089025,1738330246332,-1041.55,0.00016575,2]
[351089027,1738330246341,-777.0,0.00016575,2]
[351089028,1738330246350,-616.99,0.00016575,2]
[351089029,1738330246360,-2419.41,0.00016575,2]
[351089030,1738330246370,-500.0,0.00016575,2]
[351089031,1738330246379,-1574.18,0.00016575,2]
[351089032,1738330246389,-1389.39,0.00016575,2]
[351089033,1738330246398,-1164.06,0.00016575,2]
[351089034,1738330246408,-892.74,0.00016575,2]
[351089035,1738330246417,-683.62,0.00016575,2]
[351089036,1738330246429,-1428.06,0.00016575,2]
[351089037,1738330246439,-1479.4,0.00016575,2]
[351089038,1738330246449,-500.0,0.00016575,2]
[351089039,1738330246459,-500.0,0.00016575,2]
[351089040,1738330246468,-955.05,0.00016575,2]
[351089041,1738330246477,-788.4,0.00016575,2]
[351089042,1738330246487,-1281.17,0.00016575,2]
[351089043,1738330246496,-500.0,0.00016575,2]
[351089044,1738330246505,-1032.5,0.00016575,2]
[351089045,1738330246515,-788.97,0.00016575,2]
[351089046,1738330246526,-599.37,0.00016575,2]
[351089047,1738330246537,-1774.15,0.00016575,2]
[351089048,1738330246547,-853.36,0.00016575,2]
[351089049,1738330246556,-665.64,0.00016575,2]
[351089050,1738330246565,-692.58,0.00016575,2]
[351089051,1738330246575,-4499.05,0.00016575,2]
[351089052,1738330246584,-2204.99,0.00016575,2]
[351089053,1738330246594,-500.0,0.00016575,2]
[351089054,1738330246603,-1244.32,0.00016575,2]
[351089055,1738330246613,-500.0,0.00016575,2]
[351089056,1738330246622,-2221.39,0.00016575,2]
[351089057,1738330246631,-582.68,0.00016575,2]
[351089058,1738330246640,-1029.05,0.00016575,2]
[351089059,1738330246649,-1011.4,0.00016575,2]
[351089060,1738330246658,-1376.47,0.00016575,2]
[351089061,1738330246749,-4123.97,0.00016575,2]
[351089062,1738330246758,-1294.35,0.00016575,2]
[351089063,1738330246768,-902.32,0.00016575,2]
[351089064,1738330246777,-847.74,0.00016575,2]
[351089065,1738330246786,-533.87,0.00016575,2]
[351089066,1738330246795,-2673.95,0.00016575,2]
[351089067,1738330246804,-153.065871,0.00016575,2]
[351089068,1738330246813,-500.0,0.00016575,2]
[351089069,1738330246821,-3729.53,0.00016575,2]
[351089070,1738330246830,-500.0,0.00016575,2]
[351089071,1738330246840,-1251.69,0.00016575,2]
[351089072,1738330246848,-860.21,0.00016575,2]
[351089073,1738330246858,-992.97,0.00016575,2]
[351089074,1738330246867,-987.07,0.00016575,2]
[351089075,1738330246876,-756.61,0.00016575,2]
[351089076,1738330246886,-664.58,0.00016575,2]
[351089077,1738330246895,-502.19,0.00016575,2]
[351089078,1738330246904,-519.58845162,0.00016575,2]
[351089079,1738330246913,-1951.73,0.00016575,2]
[351089080,1738330246922,-630.67,0.00016575,2]
[351089081,1738330246932,-500.0,0.00016575,2]
[351089082,1738330246941,-915.53,0.00016575,2]
[351089083,1738330246950,-637.45,0.00016575,2]
[351089084,1738330246960,-500.0,0.00016575,2]
[351089085,1738330246969,-500.0,0.00016575,2]
[351089086,1738330246978,-500.0,0.00016575,2]
[351089087,1738330246989,-1177.21,0.00016575,2]
[351089088,1738330246998,-1804.68,0.00016575,2]
[351089089,1738330247007,-2725.19,0.00016575,2]
[351089090,1738330247016,-1925.39,0.00016575,2]
[351089091,1738330247026,-2309.95,0.00016575,2]
[351089092,1738330247035,-1862.18,0.00016575,2]
[351089093,1738330247044,-780.22,0.00016575,2]
[351089094,1738330247053,-977.44,0.00016575,2]
[351089095,1738330247063,-1774.6,0.00016575,2]
[351089096,1738330247072,-991.11,0.00016575,2]
[351089097,1738330247082,-1285.72,0.00016575,2]
[351089098,1738330247092,-500.0,0.00016575,2]
[351089099,1738330247102,-1845.86,0.00016575,2]
[351089100,1738330247111,-500.0,0.00016575,2]
[351089101,1738330247120,-514.25010213,0.00016575,2]
[351089102,1738330247129,-1408.31,0.00016575,2]
[351089103,1738330247138,-1126.86,0.00016575,2]
[351089104,1738330247148,-1863.64,0.00016575,2]
[351089105,1738330247157,-2837.3,0.00016575,2]
[351089106,1738330247172,-500.0,0.00016575,2]
[351089107,1738330247183,-3575.8,0.00016575,2]
[351089108,1738330247193,-2345.02,0.00016575,2]